bitfinex-derivatives/quotes_SOLF0:USTF0_20250803
["timestamp","ask_amount","ask_price","bid_price","bid_amount"]
[1754262442606,9.5412,162.31,162.3,3.3]
[1754262443116,3.38,162.31,162.3,3.3]
[1754262443814,9.5409,162.31,162.3,3.3]
[1754262444911,6.1614,162.3,162.28,5.58156562]
[1754262445114,3.38,162.3,162.27,113.98]
[1754262445310,3.38,162.3,162.27,117.28]
[1754262445511,5.58156562,162.33,162.27,117.28]
[1754262445512,3.38,162.28,162.27,117.28]
[1754262445908,3.38,162.28,162.27,113.98]
[1754262446110,3.38,162.28,162.27,117.28]
[1754262447316,9.542,162.28,162.27,117.28]
[1754262447615,3.38,162.28,162.27,117.28]
[1754262448117,3.38,162.29,162.28,3.3]
[1754262448707,3.38,162.3,162.29,3.3]
[1754262451114,3.38,162.33,162.28,3.3]
[1754262451816,6.1616,162.3,162.28,3.3]
[1754262452013,3.38,162.29,162.28,3.3]
[1754262452619,9.5417,162.29,162.28,3.3]
[1754262454620,3.38,162.29,162.28,3.3]
[1754262455820,9.5417,162.29,162.28,3.3]
[1754262457521,9.542,162.28,162.27,113.98]
[1754262459715,9.542,162.28,162.27,117.28]
[1754262460132,6.162,162.28,162.27,117.28]
[1754262460328,3.38,162.33,162.28,3.3]
[1754262460522,3.38,162.33,162.29,3.3]
[1754262461624,9.5414,162.3,162.29,3.3]
[1754262463039,6.1609,162.32,162.29,3.3]
[1754262463436,9.5409,162.32,162.29,3.3]
[1754262463934,3.38,162.32,162.29,3.3]
[1754262464132,3.17,162.34,162.31,3.48]
[1754262464329,3.17,162.34,162.32,3.48]
[1754262464831,3.17,162.36,162.33,3.48]
[1754262465128,3.17,162.36,162.33,9.6401]
[1754262465328,3.17,162.36,162.34,3.48]
[1754262465533,3.17,162.38,162.34,3.48]
[1754262465736,5.58156562,162.42,162.34,3.48]
[1754262465737,5.58156562,162.42,162.35,3.48]
[1754262465930,3.17,162.37,162.35,3.48]
[1754262466128,3.17,162.37,162.34,5.58156562]
[1754262466129,3.17,162.37,162.36,3.48]
[1754262466634,3.17,162.39,162.36,3.48]
[1754262467331,3.17,162.38,162.36,3.48]
[1754262467632,3.17,162.38,162.37,3.48]
[1754262468040,3.17,162.37,162.36,3.48]
[1754262469440,9.3286,162.37,162.35,113.7]
[1754262469631,3.17,162.36,162.35,113.7]
[1754262469831,6.1602,162.33,162.29,9.6416]
[1754262470141,3.17,162.31,162.3,3.48]
[1754262470333,3.17,162.33,162.3,3.48]
[1754262470637,3.17,162.32,162.31,3.48]
[1754262470834,3.17,162.31,162.29,3.48]
[1754262471038,3.17,162.31,162.3,3.48]
[1754262473436,6.1602,162.33,162.29,3.48]
[1754262473639,9.3302,162.33,162.29,3.48]
[1754262474235,9.3302,162.33,162.3,3.48]
[1754262474439,6.1602,162.33,162.3,3.48]
[1754262474741,5.58156562,162.38,162.31,3.48]
[1754262474742,3.17,162.34,162.31,3.48]
[1754262475041,261.02435121,162.44,162.32,117.16]
[1754262475042,5.58156562,162.4,162.32,117.16]
[1754262475239,6.1591,162.36,162.33,3.48]
[1754262475434,143.93268968,162.44,162.35,3.48]
[1754262475435,3.17,162.37,162.35,3.48]
[1754262475635,5.58156562,162.43,162.35,3.48]
[1754262475834,3.17,162.36,162.35,3.48]
[1754262476342,6.1585,162.38,162.35,3.48]
[1754262476544,3.17,162.37,162.36,3.48]
[1754262477230,3.17,162.36,162.34,9.06156562]
[1754262477442,3.17,162.36,162.35,3.48]
[1754262482252,3.17,162.37,162.35,3.48]
[1754262482748,5.58156562,162.43,162.35,3.48]
[1754262482949,3.17,162.42,162.35,3.48]
[1754262483350,6.1578,162.4,162.35,6.1591]
[1754262483653,3.17,162.38,162.37,3.48]
[1754262483856,3.17,162.39,162.36,9.639]
[1754262484150,3.17,162.38,162.37,3.48]
[1754262485346,137.04303983,162.44,162.37,3.48]
[1754262485545,3.17,162.41,162.38,3.48]
[1754262485748,137.04303983,162.44,162.39,3.48]
[1754262485945,3.17,162.42,162.39,3.48]
[1754262487046,3.17,162.44,162.41,3.48]
[1754262487246,3.17,162.48,162.41,3.48]
[1754262487554,3.17,162.44,162.39,3.48]
[1754262487742,3.17,162.43,162.39,3.48]
[1754262487948,5.58156562,162.49,162.41,3.48]
[1754262488251,3.17,162.44,162.41,3.48]
[1754262488459,3.17,162.43,162.4,6.1572]
[1754262488648,3.17,162.43,162.42,3.48]
[1754262489948,6.1562,162.44,162.39,11.73936562]
[1754262490141,3.17,162.42,162.41,3.48]
[1754262490546,6.1562,162.44,162.41,3.48]
[1754262490747,3.17,162.43,162.41,3.48]
[1754262491457,3.17,162.43,162.4,6.1574]
[1754262491760,3.17,162.42,162.4,3.48]
[1754262492055,3.17,162.41,162.4,3.48]
[1754262492953,3.17,162.45,162.38,233.0]
[1754262493351,6.1573,162.41,162.38,233.0]
[1754262493549,6.1573,162.41,162.38,236.48]
[1754262493754,3.17,162.39,162.38,236.48]
[1754262494051,3.17,162.39,162.38,3.48]
[1754262494545,3.17,162.39,162.36,349.88]
[1754262495456,3.17,162.39,162.37,3.26]
[1754262495852,3.45,162.38,162.37,3.26]
[1754262496251,9.6082,162.38,162.37,3.26]
[1754262496559,3.45,162.37,162.33,113.6]
[1754262496750,3.45,162.37,162.33,116.86]
[1754262497359,3.45,162.35,162.33,116.86]
[1754262497550,3.45,162.34,162.33,116.86]
[1754262498663,9.6097,162.34,162.33,116.86]
[1754262498860,9.6097,162.34,162.33,113.6]
[1754262501263,3.45,162.34,162.33,113.6]
[1754262501761,3.45,162.36,162.33,116.86]
[1754262501962,3.45,162.35,162.34,3.26]
[1754262503658,3.45,162.39,162.34,3.26]
[1754262504360,3.45,162.38,162.32,3.26]
[1754262505162,3.45,162.35,162.33,3.26]
[1754262505665,3.45,162.34,162.33,3.26]
[1754262508760,3.45,162.34,162.31,119.7809]
[1754262508961,3.45,162.34,162.31,116.88]
[1754262509864,3.45,162.34,162.32,3.26]
[1754262510065,3.45,162.33,162.32,3.26]
[1754262510268,6.1595,162.35,162.32,3.26]
[1754262510463,3.45,162.34,162.33,3.26]
[1754262513764,9.6095,162.35,162.34,3.26]
[1754262513964,3.45,162.35,162.34,3.26]
[1754262515970,9.6094,162.35,162.34,3.26]
[1754262516466,3.45,162.42,162.35,3.26]
[1754262516670,3.45,162.39,162.35,3.26]
[1754262517069,6.1589,162.37,162.32,3.26]
[1754262517275,3.45,162.36,162.32,117.12]
[1754262517565,3.45,162.36,162.33,3.26]
[1754262517773,7.93564352,162.35,162.33,3.26]
[1754262517975,3.45,162.35,162.33,3.26]
[1754262518177,3.45,162.35,162.32,113.86]
[1754262518371,3.45,162.35,162.34,3.26]
[1754262518576,7.93635178,162.35,162.34,3.26]
[1754262520374,7.93635178,162.35,162.32,117.12]
[1754262520375,3.45,162.34,162.32,117.12]
[1754262520578,3.45,162.33,162.32,117.12]
[1754262520874,3.45,162.35,162.32,113.86]
[1754262521170,3.45,162.35,162.34,3.26]
[1754262521375,10.64650029,162.35,162.33,3.26]
[1754262521577,4.48710029,162.34,162.33,3.26]
[1754262521968,7.93710029,162.34,162.33,3.26]
[1754262522675,4.48710029,162.34,162.33,3.26]
[1754262523077,5.58156562,162.41,162.33,5.58156562]
[1754262523266,5.58156562,162.39,162.32,233.0]
[1754262523575,3.45,162.37,162.33,3.26]
[1754262523777,3.51,162.35,162.34,3.34]
[1754262524076,3.51,162.34,162.32,3.34]
[1754262524273,4.48683779,162.33,162.32,3.34]
[1754262524470,3.51,162.34,162.32,3.34]
[1754262524775,3.51,162.34,162.33,3.34]
[1754262524977,7.99696458,162.34,162.33,3.34]
[1754262533783,3.51,162.37,162.33,3.34]
[1754262533980,4.50130753,162.36,162.35,3.34]
[1754262534481,8.01130753,162.36,162.35,3.34]
[1754262534984,8.01130753,162.36,162.34,113.8]
[1754262535175,8.01130753,162.35,162.34,117.14]
[1754262537985,4.50130753,162.35,162.34,123.2997]
[1754262538386,8.01130753,162.35,162.34,123.2997]
[1754262538782,8.01130753,162.35,162.34,117.14]
[1754262539590,8.01130753,162.35,162.34,113.8]
[1754262540279,8.01130753,162.35,162.34,117.14]
[1754262542992,8.01130753,162.35,162.34,116.98]
[1754262544893,4.50130753,162.35,162.34,116.98]
[1754262545194,8.01130753,162.35,162.34,116.98]
[1754262546499,4.50130753,162.35,162.34,123.1397]
[1754262546999,4.50130753,162.35,162.34,128.72126562]
[1754262547300,3.51,162.38,162.36,3.34]
[1754262547497,3.51,162.38,162.37,116.98]
[1754262549300,3.51,162.38,162.36,113.64]
[1754262549795,6.1589,162.37,162.36,113.64]
[1754262549992,9.6689,162.37,162.36,113.64]
[1754262550702,6.1591,162.36,162.34,113.84]
[1754262550902,3.51,162.35,162.34,113.84]
[1754262551402,9.6694,162.35,162.34,113.84]
[1754262551901,3.51,162.35,162.32,113.86]
[1754262552094,6.1604,162.33,162.32,113.86]
[1754262552295,3.51,162.33,162.32,113.86]
[1754262553498,3.51,162.33,162.32,117.2]
[1754262555911,5.58156562,162.38,162.32,117.2]
[1754262556104,6.88964985,162.43,162.38,3.32]
[1754262556304,6.88964985,162.43,162.42,3.32]
[1754262556503,6.88964985,162.43,162.4,117.24]
[1754262556705,6.88964985,162.48,162.4,117.24]
[1754262556906,12.47121547,162.49,162.4,117.24]
[1754262557106,6.1559,162.45,162.4,3.32]
[1754262557508,5.58156562,162.47,162.38,117.26]
[1754262557710,5.58156562,162.47,162.38,3.32]
[1754262557913,12.47121547,162.47,162.38,3.32]
[1754262558209,3.5,162.46,162.4,3.32]
[1754262558506,3.5,162.46,162.42,3.32]
[1754262559310,6.1554,162.46,162.42,3.32]
[1754262559607,3.5,162.45,162.42,3.32]
[1754262561010,9.6556,162.45,162.4,5.58156562]
[1754262561205,3.5,162.43,162.41,3.32]
[1754262561404,8.08443046,162.42,162.41,3.32]
[1754262563305,3.5,162.41,162.37,3.32]
[1754262563612,8.08121698,162.4,162.39,3.32]
[1754262564303,4.58121698,162.4,162.39,3.32]
[1754262565106,3.5,162.42,162.39,8.90156562]
[1754262565309,3.5,162.41,162.4,3.32]
[1754262565706,8.07971363,162.41,162.4,3.32]
[1754262565902,3.5,162.4,162.37,3.32]
[1754262566410,3.5,162.42,162.37,3.32]
[1754262566610,8.08008762,162.41,162.37,3.32]
[1754262566810,8.08008762,162.4,162.37,9.4785]
[1754262567012,3.5,162.4,162.37,3.32]
[1754262567210,4.57999576,162.39,162.37,3.32]
[1754262567411,3.5,162.4,162.37,3.32]
[1754262567613,4.58018522,162.39,162.37,3.32]
[1754262567912,3.5,162.4,162.37,3.32]
[1754262568110,4.58018522,162.39,162.37,3.32]
[1754262568312,3.5,162.4,162.37,3.32]
[1754262568513,4.58009423,162.39,162.37,3.32]
[1754262568813,3.5,162.4,162.37,3.32]
[1754262569007,4.58009423,162.39,162.37,3.32]
[1754262569211,3.5,162.4,162.38,3.32]
[1754262569515,4.58009556,162.39,162.38,3.32]
[1754262571609,4.7950885,162.39,162.38,15.05976562]
[1754262571806,4.7950885,162.39,162.38,8.90156562]
[1754262573111,4.7950885,162.39,162.31,352.08893806]
[1754262573112,3.5,162.38,162.34,8.90156562]
[1754262573316,3.5,162.36,162.35,3.32]
[1754262575912,6.1582,162.39,162.35,3.32]
[1754262576114,3.5,162.37,162.36,3.32]
[1754262576306,8.29650001,162.37,162.36,3.32]
[1754262576511,3.5,162.36,162.32,3.32]
[1754262576712,3.5,162.34,162.32,3.32]
[1754262576907,8.29730548,162.33,162.32,3.32]
[1754262581119,4.79730548,162.33,162.32,9.4805]
[1754262581819,4.79730548,162.33,162.32,15.06206562]
[1754262585317,8.19730548,162.33,162.32,9.3605]
[1754262586422,4.79730548,162.33,162.32,9.3605]
[1754262593521,3.4,162.34,162.33,9.3601]
[1754262594723,3.4,162.34,162.33,6.1601]
[1754262594928,160.00559692,162.42,162.36,9.3589]
[1754262594929,3.4,162.39,162.36,9.3589]
[1754262595120,3.4,162.37,162.33,5.58156562]
[1754262595326,3.4,162.37,162.35,9.3593]
[1754262595530,3.4,162.38,162.36,3.2]
[1754262595930,3.4,162.38,162.35,9.3592]
[1754262596225,3.4,162.36,162.35,9.3592]
[1754262596430,8.53193592,162.36,162.35,9.3592]
[1754262597224,3.4,162.36,162.35,9.3592]
[1754262599134,5.13204845,162.36,162.33,5.58156562]
[1754262599334,5.13204845,162.35,162.33,5.58156562]
[1754262599528,3.4,162.38,162.33,5.58156562]
[1754262599529,3.4,162.37,162.33,5.58156562]
[1754262599725,5.13295645,162.36,162.34,3.2]
[1754262599934,5.13295645,162.35,162.34,9.3597]
[1754262605441,3.4,162.41,162.35,3.2]
[1754262605635,3.4,162.41,162.37,5.58156562]
[1754262605833,3.4,162.41,162.37,8.78156562]
[1754262606138,3.4,162.4,162.38,9.3581]
[1754262606545,160.00559692,162.42,162.4,6.1572]
[1754262606841,3.4,162.41,162.4,6.1572]
[1754262607042,3.4,162.41,162.4,9.3572]
[1754262613436,3.4,162.41,162.39,5.58156562]
[1754262613437,3.4,162.41,162.37,113.66]
[1754262613636,3.4,162.41,162.35,3.2]
[1754262614042,3.18,162.38,162.36,3.26]
[1754262614943,3.18,162.38,162.36,9.419]
[1754262615143,3.18,162.37,162.36,9.419]
[1754262616141,3.18,162.37,162.36,3.26]
[1754262616745,3.18,162.37,162.36,9.419]
[1754262617350,8.44546118,162.37,162.36,9.419]
[1754262617945,5.26546118,162.37,162.36,9.419]
[1754262618550,8.44546118,162.37,162.36,3.26]
[1754262618849,3.18,162.36,162.35,3.26]
[1754262619047,5.26546118,162.36,162.35,9.4194]
[1754262619854,5.26546118,162.36,162.35,6.1594]
[1754262620153,5.26546118,162.36,162.35,9.4194]
[1754262621444,5.26546118,162.36,162.34,113.64]
[1754262621445,8.44546118,162.36,162.33,3.26]
[1754262621650,3.18,162.34,162.3,3.26]
[1754262621851,3.18,162.32,162.31,116.9]
[1754262622149,8.44546118,162.32,162.31,116.9]
[1754262622355,5.26546118,162.32,162.31,116.9]
[1754262622658,5.26546118,162.32,162.31,123.0609]
[1754262625658,8.44546118,162.32,162.31,123.0609]
[1754262626256,5.26546118,162.32,162.31,123.0609]
[1754262627856,6.118e-05,162.32,162.31,128.64246562]
[1754262628259,6.1581,162.39,162.35,6.1593]
[1754262628453,3.18,162.36,162.35,123.0793]
[1754262629557,3.18,162.37,162.36,3.26]
[1754262631458,3.18,162.37,162.35,116.92]
[1754262631655,3.18,162.36,162.35,116.92]
[1754262632556,3.18,162.36,162.35,123.0794]
[1754262633264,3.18,162.36,162.35,119.8194]
[1754262633568,3.18,162.36,162.35,123.0794]
[1754262634658,5.58156562,162.42,162.35,123.0794]
[1754262634659,3.18,162.38,162.35,123.0794]
[1754262634860,3.18,162.37,162.36,3.26]
[1754262639668,8.35083017,162.37,162.36,3.26]
[1754262641272,5.17083017,162.37,162.36,3.26]
[1754262641465,8.35083017,162.37,162.36,3.26]
[1754262643371,8.35083017,162.37,162.36,9.419]
[1754262643565,3.18,162.37,162.36,9.419]
[1754262643771,8.35162647,162.37,162.36,3.26]
[1754262645575,9.619,162.36,162.35,113.66]
[1754262645762,14.79062647,162.36,162.35,113.66]
[1754262645963,14.79062647,162.36,162.33,113.64]
[1754262646164,3.46,162.34,162.33,117.04]
[1754262646471,8.63162647,162.34,162.33,117.04]
[1754262647369,8.63162647,162.34,162.33,123.1999]
[1754262647774,5.17162647,162.34,162.33,123.1999]
[1754262651387,5.17162647,162.34,162.33,128.78146562]
[1754262655691,3.46,162.36,162.34,3.4]
[1754262655887,3.46,162.36,162.35,117.02]
[1754262656192,3.46,162.36,162.35,123.1791]
[1754262659690,3.46,162.36,162.35,117.02]
[1754262660495,3.46,162.36,162.35,123.1794]
[1754262660693,3.46,162.36,162.35,125.84912375]
[1754262664899,3.46,162.36,162.35,119.68972375]
[1754262665093,3.46,162.36,162.35,116.28972375]
[1754262665490,3.46,162.36,162.35,125.84912375]
[1754262666591,3.46,162.36,162.35,125.82912375]
[1754262667598,8.15463452,162.36,162.35,125.82912375]
[1754262670696,8.15463452,162.36,162.35,123.1594]
[1754262674100,8.15463452,162.36,162.35,117.0]
[1754262675007,8.15463452,162.36,162.35,123.1594]
[1754262676914,8.15463452,162.36,162.35,117.0]
[1754262677217,3.31,162.35,162.3,5.83972375]
[1754262677510,4.69463452,162.34,162.33,3.17]
[1754262677699,8.00463452,162.34,162.31,3.17]
[1754262677899,3.31,162.32,162.31,113.58]
[1754262678103,8.00817176,162.32,162.31,113.58]
[1754262678311,8.00817176,162.32,162.31,116.75]
[1754262680815,7.97668913,162.32,162.31,116.75]
[1754262682111,3.31,162.31,162.28,3.17]
[1754262682308,10.30131138,162.4,162.24,3.17]
[1754262682309,2.66972375,162.29,162.24,3.17]
[1754262682510,3.31,162.26,162.22,2.66972375]
[1754262682714,3.31,162.24,162.23,116.75]
[1754262682912,7.97668913,162.24,162.23,116.75]
[1754262683101,7.97668913,162.24,162.23,3.17]
[1754262684303,3.31,162.24,162.23,3.17]
[1754262687512,3.31,162.24,162.22,113.58]
[1754262687816,3.31,162.25,162.22,113.58]
[1754262688011,3.31,162.23,162.21,3.17]
[1754262688610,3.31,162.22,162.2,113.6]
[1754262689005,3.31,162.23,162.2,113.6]
[1754262689215,3.31,162.25,162.22,3.17]
[1754262689417,3.31,162.24,162.22,3.17]
[1754262691612,3.31,162.26,162.22,3.17]
[1754262692621,3.31,162.25,162.22,3.17]
[1754262693225,3.31,162.25,162.23,6.1638]
[1754262693520,3.31,162.25,162.24,3.17]
[1754262694124,3.31,162.25,162.21,3.17]
[1754262694720,3.31,162.25,162.21,9.3346]
[1754262694921,3.31,162.25,162.22,3.17]
[1754262695121,3.31,162.24,162.22,3.17]
[1754262696226,3.31,162.25,162.22,3.17]
[1754262696428,6.1629,162.26,162.21,3.17]
[1754262696621,3.31,162.25,162.21,113.62]
[1754262696819,3.31,162.24,162.22,3.17]
[1754262697017,3.31,162.24,162.21,113.62]
[1754262697326,3.31,162.24,162.21,116.79]
[1754262697929,3.31,162.24,162.22,3.17]
[1754262698130,6.1637,162.24,162.22,3.17]
[1754262698325,3.31,162.23,162.22,3.17]
[1754262699421,9.4739,162.23,162.22,3.17]
[1754262699633,3.31,162.23,162.2,3.17]
[1754262700020,4.17901585,162.24,162.16,765.45852602]
[1754262700223,3.31,162.2,162.19,3.17]
[1754262700727,3.31,162.21,162.17,3.17]
[1754262701229,3.31,162.19,162.18,3.17]
[1754262701431,3.31,162.21,162.13,116.79]
[1754262701632,6.1661,162.18,162.14,3.17]
[1754262702133,3.31,162.17,162.15,3.17]
[1754262702334,3.31,162.16,162.13,119.7876]
[1754262702537,4.17901585,162.2,162.13,119.7876]
[1754262702825,3.31,162.18,162.14,3.17]
[1754262703223,3.31,162.16,162.15,3.17]
[1754262703834,3.19,162.17,162.14,3.41]
[1754262704032,4.17901585,162.2,162.14,3.41]
[1754262704231,4.6250713,162.19,162.15,3.41]
[1754262704434,3.19,162.21,162.17,3.41]
[1754262704930,161.56093122,162.24,162.18,3.41]
[1754262705140,3.19,162.22,162.18,3.41]
[1754262705437,3.19,162.2,162.18,3.41]
[1754262705631,3.19,162.2,162.19,3.41]
[1754262705937,3.19,162.21,162.19,3.41]
[1754262706128,3.19,162.22,162.19,3.41]
[1754262706735,3.19,162.23,162.19,3.41]
[1754262706936,3.19,162.21,162.17,3.41]
[1754262707435,3.19,162.2,162.17,3.41]
[1754262708337,9.3551,162.2,162.17,3.41]
[1754262708534,3.19,162.2,162.17,3.41]
[1754262708937,3.19,162.22,162.18,3.41]
[1754262709336,9.3546,162.22,162.18,9.5757]
[1754262709538,3.19,162.21,162.19,3.41]
[1754262711834,9.3547,162.21,162.2,3.41]
[1754262712234,6.1651,162.2,162.18,3.41]
[1754262712440,9.3551,162.2,162.19,3.41]
[1754262713439,3.19,162.2,162.19,3.41]
[1754262715842,9.3551,162.2,162.19,3.41]
[1754262716738,4.17901585,162.23,162.17,3.41]
[1754262717046,3.19,162.19,162.15,3.41]
[1754262717338,3.19,162.18,162.15,3.41]
[1754262717538,9.3558,162.18,162.15,3.41]
[1754262718343,3.19,162.18,162.15,3.41]
[1754262718843,3.19,162.18,162.15,6.167]
[1754262719032,3.19,162.18,162.16,3.41]
[1754262719647,3.19,162.2,162.16,9.5764]
[1754262719939,3.19,162.2,162.17,3.41]
[1754262720138,4.63685264,162.19,162.17,3.41]
[1754262720336,9.3554,162.2,162.17,3.41]
[1754262720536,161.56093122,162.24,162.17,3.41]
[1754262720737,4.6365898,162.23,162.17,3.41]
[1754262720942,7.8265898,162.22,162.17,3.41]
[1754262721145,4.6365898,162.21,162.17,3.41]
[1754262721337,3.19,162.21,162.17,3.41]
[1754262721844,3.19,162.21,162.19,3.41]
[1754262724743,6.163,162.26,162.21,3.41]
[1754262725049,3.19,162.24,162.21,3.41]
[1754262725239,3.19,162.22,162.2,118.07901585]
[1754262725445,3.19,162.22,162.21,3.41]
[1754262725644,7.83934773,162.22,162.21,3.41]
[1754262726344,4.64934773,162.22,162.21,3.41]
[1754262726649,7.83934773,162.22,162.21,3.41]
[1754262726850,4.64934773,162.22,162.21,3.41]
[1754262727346,4.64934773,162.22,162.21,13.75371585]
[1754262727552,4.64934773,162.22,162.21,3.41]
[1754262729548,7.83934773,162.22,162.21,3.41]
[1754262730350,4.64934773,162.22,162.21,3.41]
[1754262731851,14.00364773,162.22,162.21,3.41]
[1754262732252,3.19,162.21,162.2,3.41]
[1754262732551,4.64934773,162.21,162.2,3.41]
[1754262732737,7.83934773,162.21,162.19,113.84]
[1754262732942,7.83934773,162.2,162.19,117.25]
[1754262733147,14.00444773,162.2,162.19,113.84]
[1754262733346,14.00444773,162.2,162.12,5.07484303]
[1754262733347,3.19,162.19,162.17,3.41]
[1754262733542,7.83934773,162.18,162.17,3.41]
[1754262733746,4.64934773,162.18,162.17,3.41]
[1754262734554,3.48,162.24,162.17,3.41]
[1754262734749,3.48,162.22,162.17,3.41]
[1754262734953,3.48,162.2,162.18,3.43]
[1754262735151,4.65973504,162.19,162.18,3.43]
[1754262735344,8.13973504,162.19,162.18,3.43]
[1754262735745,4.65973504,162.19,162.18,3.43]
[1754262736546,8.13973504,162.19,162.15,113.98]
[1754262736746,8.13973504,162.18,162.16,3.43]
[1754262736946,3.48,162.18,162.16,3.43]
[1754262738057,6.1648,162.21,162.16,6.1665]
[1754262738246,4.66206559,162.2,162.17,3.43]
[1754262738442,4.66206559,162.19,162.17,3.43]
[1754262738650,4.66218287,162.18,162.17,3.43]
[1754262739747,4.66218287,162.18,162.17,9.5962]
[1754262740149,3.48,162.25,162.17,3.43]
[1754262740345,3.48,162.25,162.21,6.1645]
[1754262740551,3.48,162.25,162.22,3.43]
[1754262740746,3.48,162.24,162.22,3.43]
[1754262740953,3.48,162.24,162.23,3.43]
[1754262742056,3.48,162.23,162.21,117.37]
[1754262742252,3.48,162.23,162.21,113.94]
[1754262742756,3.48,162.22,162.21,113.94]
[1754262743456,9.6443,162.22,162.18,6.1657]
[1754262743656,3.48,162.24,162.18,120.0857]
[1754262744255,3.48,162.24,162.18,123.5157]
[1754262744858,4.17901585,162.25,162.18,120.0857]
[1754262745156,3.48,162.24,162.18,117.35]
[1754262745554,6.1651,162.2,162.18,117.35]
[1754262745755,3.48,162.19,162.18,117.35]
[1754262752062,8.05511361,162.19,162.18,117.35]
[1754262752953,4.57511361,162.19,162.18,123.5158]
[1754262756461,3.48,162.26,162.21,6.1643]
[1754262756656,3.48,162.26,162.22,113.76]
[1754262756860,6.88964985,162.28,162.21,6.1643]
[1754262757056,25.55866245,162.3,162.11,4.17901585]
[1754262757057,3.48,162.21,162.11,4.17901585]
[1754262757263,3.48,162.21,162.13,4.17901585]
[1754262757562,9.647,162.15,162.12,3.43]
[1754262757762,3.48,162.15,162.13,114.22]
[1754262758261,3.48,162.15,162.14,114.26]
[1754262758854,9.647,162.15,162.14,114.26]
[1754262759060,6.167,162.15,162.14,114.24]
[1754262759267,6.1665,162.17,162.14,117.67]
[1754262759464,4.17901585,162.22,162.15,3.43]
[1754262759658,3.48,162.21,162.15,3.43]
[1754262759855,6.1662,162.17,162.16,114.28]
[1754262760058,9.6462,162.17,162.16,114.28]
[1754262761360,6.1666,162.16,162.15,3.43]
[1754262761567,9.6466,162.16,162.15,117.67]
[1754262761864,9.6466,162.16,162.15,114.24]
[1754262762159,4.17901585,162.22,162.15,114.24]
[1754262762366,3.48,162.21,162.16,3.43]
[1754262762961,6.1655,162.19,162.16,3.43]
[1754262763162,3.48,162.23,162.16,3.43]
[1754262763561,9.6446,162.22,162.18,3.43]
[1754262763760,3.5,162.24,162.2,3.52]
[1754262763960,4.17901585,162.26,162.2,3.52]
[1754262763961,6.1632,162.25,162.2,9.6848]
[1754262764161,9.6632,162.25,162.21,3.52]
[1754262764569,164.20087905,162.27,162.23,4.17901585]
[1754262764865,164.20087905,162.27,162.25,3.52]
[1754262765266,164.20087905,162.27,162.26,3.52]